Workbook

Sheet Settings
C2: Test Conditions | G2: T401L QUADRILATERAL TESTING SPREADSHEET | N2: version 1.09 | Z2: F | AC2: 5
C3: INOM | D3: 5 | E3: A secondary | G3: This spreadsheet helps users test the quadrilateral elements in the SEL-T401L. Enable macros for best experience! | Z3: R | AC3: 1
C4: Fault Type | D4: SLG | G4: It is provided as-is, without warranty, either expressed or implied. Its use is the sole responsibility of the user. | AC4: ABC
C5: Zone | D5: 1 | G5: Refer to application guide AG 2021-XX for more information (available at https://www.selinc.com). | AC5: ACB
AC6: SLG
C7: Relay Settings | AC7: PH-PH
C8: PHROT | D8: ABC | G8: Settings Instructions | AC8: 3PH
C9: VNOMY | D9: 115 | E9: L-L V secondary | G9: 1. Enable macros if prompted. See the Info worksheet for more information. | AC9: 1
C10: Z1MAG | D10: 5 | E10: Ω secondary | G10: 2. Only modify yellow cells in this spreadsheet. | X10: Z1MAG RANGE | Z10: =IF(_INOMset=5,0.05,0.25) -> 0.05 | AA10: =IF(_INOMset=5,255,1275) -> 255 | AC10: 2
C11: Z1ANG | D11: 80 | E11: degrees | G11: 3. Parameters for the second reactance blinder will appear below if applicable. | AC11: 3
AC12: 4
C13: ZDIRn | D13: F | G13: Second Reactance Test Circle | AC13: 5
C14: Zxn | D14: 3 | E14: Ω secondary | G14: Radius | H14: =IF(OR(AND(_H=1,_ZONE=1,ISNUMBER(_rc)),AND(_H=1,_ZONE=2,_EPILOTset<>"N",ISNUMBER(_rc))),_rc,"NA") -> 16.93352137 | I14: Ω secondary | X14: ZXn RANGE | Z14: =IF(_INOMset=5,0.05,0.25) -> 0.05 | AA14: =IF(_INOMset=5,64,320) -> 64 | AC14: N
C15: ZxnR | D15: 10 | E15: Ω secondary | G15: Center | H15: =IF(OR(AND(_H=1,_ZONE=1,ISNUMBER(_rc)),AND(_H=1,_ZONE=2,_EPILOTset<>"N",ISNUMBER(_rc))),IMABS(COMPLEX(_hc,_kc)),"NA") -> 13.96706715 | I15: ∠ | J15: =IF(OR(AND(_H=1,_ZONE=1,ISNUMBER(_rc)),AND(_H=1,_ZONE=2,_EPILOTset<>"N",ISNUMBER(_rc))),DEGREES(IMARGUMENT(COMPLEX(_hc,_kc))),"NA") -> -90.55016373 | K15: degrees | X15: ZXnR RANGE | Z15: =IF(_INOMset=5,0.05,0.25) -> 0.05 | AA15: =IF(_INOMset=5,64,320) -> 64 | AC15: POTT
C16: Zx5REV | D16: 4 | E16: Ω secondary | X16: ZX5REV RANGE | Z16: =IF(_INOMset=5,0.05,0.25) -> 0.05 | AA16: =IF(_INOMset=5,64,320) -> 64 | AC16: DCB
C17: ZxnTANG | D17: -3 | E17: degrees
C18: Zx1TANG | D18: -3 | E18: degrees
C19: k0Mn | D19: 0.727
C20: k0An | D20: -3.65 | E20: degrees
C21: ZGn_50P | D21: 0.5 | E21: A secondary | X21: ZGn_50P RANGE | Z21: =IF(_INOMset=5,0.5,0.1) -> 0.5 | AA21: =IF(_INOMset=5,100,20) -> 100
C22: ZGn_50G | D22: 0.5 | E22: A secondary | X22: ZGn_50G RANGE | Z22: =IF(_INOMset=5,0.5,0.1) -> 0.5 | AA22: =IF(_INOMset=5,100,20) -> 100
C23: ZPn_50PP | D23: 0.5 | E23: A secondary | X23: ZPn_50PP RANGE | Z23: =IF(_INOMset=5,0.5,0.1) -> 0.5 | AA23: =IF(_INOMset=5,100,20) -> 100
C24: EPILOT | D24: POTT
C26: Where : | D26: x=G or P
D27: n=1,2,3,4,5

Sheet Graph
N2: Graph Controls | R2: Reactance Comparator Check | Y2: Graph Instructions
R3: Reactance Comparator Condition (Asserted/Deasserted): | Y3: 1. The graph shows the following (colors):
R4: X1 (self-polarized reactance) | W4: =IF(IF(EXACT(_ZONE,"5"),AND(_X1<_ZXnset,_X1>-_ZX5REVset),IF(_H>0,_X1<_ZXnset,_X1>-_ZXnset)),"ASSERTED","DEASSERTED") -> ASSERTED | Y4: •Line angle
R5: X2 (I2, I0, and V1 polarized reactance) | W5: =IF(ISERROR(IF(IF(OR(AND(_H=1,_ZONE=1),AND(_H=1,_ZONE=2,_EPILOTset<>"N")), _X2<_ZXnset,"N/A"),"ASSERTED","DEASSERTED")),"N/A",IF(IF(OR(AND(_H=1,_ZONE=1),AND(_H=1,_ZONE=2,_EPILOTset<>"N")), _X2<_ZXnset,"N/A"),"ASSERTED","DEASSERTED")) -> ASSERTED | Y5: •Test impedance (X) and vector
R6: RB (resistance blinder) | W6: =_RB -> 0.3463237577 | Y6: •Quadrilateral shape
Y7: •Second reactance blinder arc†
R8: Apparent Loop Impedance | Y8: •FS Line (Only shown for PH-PH faults when
S9: =IF(EXACT(_FTYPE,"SLG"),"ZAG","ZBC") -> ZAG | T9: =IMABS(IF(EXACT(_FTYPE,"SLG"),_ZAG,_ZBC)) -> 2.317301231 | V9: =DEGREES(IMARGUMENT(IF(EXACT(_FTYPE,"SLG"),_ZAG,_ZBC))) -> 71.53641323 | Y9: Z1ANG>70°)
Y10: †Not always shown/applicable.
N13: Test Values | V13: Supervisory Relay Word Bits | Y13: 2. Zoom, pan, and reset with the graph controls
N14: Apply balanced and nominal prefault voltage for 1 second.
N15: Ensure breaker poles closed. | V15: =IF(EXACT(_FTYPE,"SLG"),"ZAGFS","ZBCFS") -> ZAGFS | W15: =IF(_LOOPDIR,"ASSERTED","DEASSERTED") -> ASSERTED | Y15: 3. Vary the test currents and angles:
V16: =IF(EXACT(_FTYPE,"SLG"),"ZGn_50A","ZPn_50BC") -> ZGn_50A | W16: =IF(IF(EXACT(_FTYPE,"SLG"),_ZGn_50A,_ZPn_50BC),"ASSERTED","DEASSERTED") -> ASSERTED | Y16: •Type the desired values OR
N17: |VA| | O17: 20 | R17: ∠VA | S17: 0 | V17: =IF(EXACT(_FTYPE,"SLG"),"ZGn_50G","") -> ZGn_50G | W17: =IF(ISERROR(IF(IF(EXACT(_FTYPE,"SLG"),_ZGn_50G,""),"ASSERTED","DEASSERTED")),"",IF(IF(EXACT(_FTYPE,"SLG"),_ZGn_50G,""),"ASSERTED","DEASSERTED")) -> ASSERTED | Y17: •Use the increment/decrement arrows
N18: |VB| | O18: =_VNOMset/SQRT(3) -> 66.39528096 | R18: ∠VB | S18: =_VAANG+DEGREES(IMARGUMENT(_a)+IMARGUMENT(_a))-360 -> -120 | Y18: •Modify the incremental change values
N19: |VC| | O19: =_VNOMset/SQRT(3) -> 66.39528096 | R19: ∠VC | S19: =_VAANG+DEGREES(IMARGUMENT(_a)) -> 120 | V19: Also Check: | Y19: on each button press as needed.
V20: =IF(EXACT(_FTYPE,"SLG"),"ZGnTC=1","ZPnTC=1") -> ZGnTC=1
N21: |IA| | O21: 5 | R21: ∠IA | S21: -70 | V21: =IF(EXACT(_FTYPE,"SLG"),"ZLOADAG=0","ZLOADBC=0") -> ZLOADAG=0 | Y21: 4. Verify reactance blinders are satisfied
N22: |IB| | O22: 0 | R22: ∠IB | S22: 0 | V22: LOP=0
N23: |IC| | O23: 0 | R23: ∠IC | S23: 0 | V23: VPOLOK=1 | Y23: 5. Verify the supervisory bits.
V24: =IF(EXACT(_FTYPE,"SLG"),"PSBAG=0","PSBBC=0") -> PSBAG=0
N25: Incremental Change (Buttons) | V25: PSBIP=0
O26: 𝛥 |I| | P26: 0.1 | R26: 𝛥 ∠I | S26: 1 | V26: =IF(EXACT(_FTYPE,"SLG"),"OPA=0","OPB=0") -> OPA=0
V27: =IF(EXACT(_FTYPE,"SLG"),"CVTAG=0","OPC=0") -> CVTAG=0 | W27: =IF(EXACT(V27,"CVTAG=0"),"Zone 1 only","") -> Zone 1 only
N28: All angles are provided in degrees | V28: =IF(EXACT(_FTYPE,"SLG"),"","CVTBC=0") ->  | W28: =IF(EXACT(V28,"CVTBC=0"),"Zone 1 only","") -> 

Sheet Info
B3: This spreadsheet contains macros for the following functions:
B4: 1. Button functionality (ie. graph navigation, increment/decrement currents/voltages).
B5: 2. Auto-populate current/voltage test values depending on the type of fault and phase rotation selected.
B6: 3. Auto-reset the graph when clicking on the graph worksheet.
B8: Macros are not required for this spreadsheet if the user wishes to manually enter test values and adjust the graph zoom limits. Worksheets can be unprotected under the Review tab. There is no password.
B10: Macro code is available and can be audited under the Developer tab. To enable the developer tab, go to File->Options->Customize Ribbon. Then select the Developer checkbox under the Main Tabs heading.

Sheet Calcs (hidden)
B1: ##Definitions
B2: DR | C2: =MAX(0.1*_Z1MAGset,0.5) -> 0.5
B3: DX | C3: =MAX(0.2*_Z1MAGset,0.5) -> 1
B4: DANG | C4: =70 -> 70
B5: a | C5: =IF(EXACT(_PHROTset,"ABC"),COMPLEX(COS(RADIANS(120)),SIN(RADIANS(120))),COMPLEX(COS(RADIANS(-120)),SIN(RADIANS(-120)))) -> -0.5+0.866025403784439i
B6: i | C6: =COMPLEX(0,1) -> i
B7: ZXTANGLINE | C7: =COMPLEX(COS(RADIANS(_ZXnTANGset)),SIN(RADIANS(_ZXnTANGset))) -> 0.998629534754574-0.0523359562429438i
B8: ZX1TANGLINE | C8: =IF(_ZONE=2,COMPLEX(COS(RADIANS(_ZX1TANGset)),SIN(RADIANS(_ZX1TANGset))),_ZXTANGLINE) -> 0.998629534754574-0.0523359562429438i | F8: #When using Zone 2 with EPILOT enabled, user must enter Z1 and Z2 TANG settings.
B9: ZXTANGCIRC | C9: =IF(_ZONE=2,_ZX1TANGset,_ZXnTANGset) -> -3
B11: ##Direction
B12: H | C12: =IF(EXACT(_ZDIRnset,"F"),1,-1) -> 1
B14: ##Test Values (Complex)
B15: VA | C15: =COMPLEX(_VAM*COS(RADIANS(_VAANG)),_VAM*SIN(RADIANS(_VAANG))) -> 20 | G15: IA | H15: =COMPLEX(_IAM*COS(RADIANS(_IAANG)),_IAM*SIN(RADIANS(_IAANG))) -> 1.71010071662834-4.69846310392954i
B16: VB | C16: =COMPLEX(_VBM*COS(RADIANS(_VBANG)),_VBM*SIN(RADIANS(_VBANG))) -> -33.1976404784035-57.5i | G16: IB | H16: =COMPLEX(_IBM*COS(RADIANS(_IBANG)),_IBM*SIN(RADIANS(_IBANG))) -> 0
B17: VC | C17: =COMPLEX(_VCM*COS(RADIANS(_VCANG)),_VCM*SIN(RADIANS(_VCANG))) -> -33.1976404784035+57.5i | G17: IC | H17: =COMPLEX(_ICM*COS(RADIANS(_ICANG)),_ICM*SIN(RADIANS(_ICANG))) -> 0
B19: VAB | C19: =IMSUB(_VA,_VB) -> 53.1976404784035+57.5i | G19: IAB | H19: =IMSUB(_IA,_IB) -> 1.71010071662834-4.69846310392954i
B20: VBC | C20: =IMSUB(_VB,_VC) -> -115i | G20: IBC | H20: =IMSUB(_IB,_IC) -> 0
B21: VCA | C21: =IMSUB(_VC,_VA) -> -53.1976404784035+57.5i | G21: ICA | H21: =IMSUB(_IC,_IA) -> -1.71010071662834+4.69846310392954i
B23: ##Sequence Comps
B24: I1A | C24: =IMPRODUCT(1/3,IMSUM(_IA,IMPRODUCT(_a,_IB),IMPRODUCT(_a,_a,_IC))) -> 0.570033572209447-1.56615436797651i
B25: I2A | C25: =IMPRODUCT(1/3,IMSUM(_IA,IMPRODUCT(_a,_a,_IB),IMPRODUCT(_a,_IC))) -> 0.570033572209447-1.56615436797651i
B26: I2B | C26: =IMPRODUCT(_I2A,_a) -> 1.0713126828109+1.27674073853163i
B27: I2C | C27: =IMPRODUCT(_I2A,_a,_a) -> -1.64134625502034+0.289413629444884i
B28: I0 | C28: =IMPRODUCT(1/3,IMSUM(_IA,_IB,_IC)) -> 0.570033572209447-1.56615436797651i
B29: IR | C29: =IMSUM(_IA,_IB,_IC) -> 1.71010071662834-4.69846310392954i
B30: V1POLA | C30: =COMPLEX(_VNOMset/SQRT(3),0) -> 66.395280956807
B31: V1POLB | C31: =IMPRODUCT(_V1POLA,_a,_a) -> -33.1976404784035-57.5000000000001i
B32: V1POLC | C32: =IMPRODUCT(_V1POLA,_a) -> -33.1976404784035+57.5000000000001i
B33: V1POLBC | C33: =IMSUB(_V1POLB,_V1POLC) -> -115i
B35: ##Misc
B36: Z | C36: =COMPLEX(COS(RADIANS(_Z1ANGset)),SIN(RADIANS(_Z1ANGset))) -> 0.17364817766693+0.984807753012208i
B37: k0 | C37: =COMPLEX(_k0Mnset*COS(RADIANS(_k0Anset)),_k0Mnset*SIN(RADIANS(_k0Anset))) -> 0.72552531928516-0.0462818655216826i
B38: ZXn | C38: =COMPLEX(_ZXnset*COS(RADIANS(_Z1ANGset)),_ZXnset*SIN(RADIANS(_Z1ANGset))) -> 0.520944533000791+2.95442325903662i
B40: ###############################AG FAULT##################################### | J40: ###############################BC/ABC FAULT#####################################
B41: IAG | C41: =IMSUM(_IA,IMPRODUCT(_k0,_IR)) -> 2.73336844753524-8.18646369895309i
B43: ZAG | C43: =IMDIV(_VA,_IAG) -> 0.733893710952269+2.19801842997724i | J43: ZBC | K43: =IMDIV(IMSUB(_VB,_VC),IMSUB(_IB,_IC)) -> 
B46: XAG1 | C46: =IMAGINARY(IMPRODUCT(_VA,IMCONJUGATE(IMPRODUCT(_ZXTANGLINE,_IAG))))/IMAGINARY(IMPRODUCT(_IAG,_Z,IMCONJUGATE(IMPRODUCT(_ZXTANGLINE,_IAG)))) -> 2.250187709 | J46: XBC1 | K46: =IMAGINARY(IMPRODUCT(_VBC,IMCONJUGATE(IMPRODUCT(_ZXTANGLINE,_IBC))))/IMAGINARY(IMPRODUCT(_IBC,_Z,IMCONJUGATE(IMPRODUCT(_ZXTANGLINE,_IBC)))) -> 
B47: XAG2 | C47: =IMAGINARY(IMPRODUCT(_VA,IMCONJUGATE(IMPRODUCT(_IPOL2,_IAG))))/IMAGINARY(IMPRODUCT(_IAG,_Z,IMCONJUGATE(IMPRODUCT(_IPOL2,_IAG)))) -> 2.24798482 | J47: XBC2 | K47: =IMAGINARY(IMPRODUCT(_VBC,IMCONJUGATE(IMPRODUCT(_IPOL2,_IBC))))/IMAGINARY(IMPRODUCT(_IBC,_Z,IMCONJUGATE(IMPRODUCT(_IPOL2,_IBC)))) -> 
B48: RAGB | C48: =IMAGINARY(IMPRODUCT(_Z,_IAG, IMCONJUGATE(_VA)))/(IMPRODUCT(IMAGINARY(_Z),IMABS(_IAG),IMABS(_IAG))) -> 0.3463237577 | J48: RBCB | K48: =IMAGINARY(IMPRODUCT(_Z,_IBC, IMCONJUGATE(_VBC)))/(IMPRODUCT(IMAGINARY(_Z),IMABS(_IBC),IMABS(_IBC))) -> 
E49: X1 | F49: =IF(EXACT(_FTYPE,"SLG"),C46,K46) -> 2.250187709
E50: X2 | F50: =IF(EXACT(_FTYPE,"SLG"),C47,K47) -> 2.24798482
E51: RB | F51: =IF(EXACT(_FTYPE,"SLG"),C48,K48) -> 0.3463237577
B53: IPOL2AG | C53: =IMDIV(IMSUB(IMPRODUCT(3,IMSUM(_I2A,_I0),_ZX1TANGLINE),IMPRODUCT(_i,_K,_V1POLA)),_IAG) -> 1.24069830794316-0.0571148395459992i | J53: IPOL2BC | K53: =IMDIV(IMSUB(IMPRODUCT(3,IMSUB(_I2B,_I2C),_ZX1TANGLINE),IMPRODUCT(_i,_K/SQRT(3),_V1POLBC)),_IBC) -> 
G55: IPOL2 | H55: =IF(EXACT(_FTYPE,"SLG"),Calcs!C53,Calcs!K53) -> 1.24069830794316-0.0571148395459992i | L55: #2nd Reactance Line Choose AG or BC Depending on FTYPE
B57: ####################DIRECTIONAL SUPERVISION BITS#########################
B58: FSSOPA | C58: =_I2A -> 0.570033572209447-1.56615436797651i | E58: FSPOLA | F58: FSPOLA | G58: =_I0 -> 0.570033572209447-1.56615436797651i | K58: THETA (Deg) | L58: 30
B59: FSSOPB | C59: =_I2B -> 1.0713126828109+1.27674073853163i | E59: FSPOLBC | F59: FSPOLB | G59: =_I0 -> 0.570033572209447-1.56615436797651i
B60: FSSOPC | C60: =_I2C -> -1.64134625502034+0.289413629444884i | F60: FSPOLC | G60: =_I0 -> 0.570033572209447-1.56615436797651i
B62: FSSOPBC | C62: =IMPRODUCT(IMPRODUCT(-1,_Z),COMPLEX(_H,0),_I2A) -> -1.64134625502034-0.289413629444884i | F62: FSPOLBC | G62: =_V1POLA -> 66.395280956807 | K62: THETA (Deg) | L62: 90
B64: ZAGFS | C64: =AND((IMREAL(IMPRODUCT(_FSSOPA,IMCONJUGATE(_FSPOLA))))>(IMABS(_FSSOPA)*IMABS(_FSPOLA)*COS(RADIANS($L$58))),_50SUPV_I2_G,_50SUPV_I0,_50SUPV_I2I1_G,_50SUPV_I0I1) -> TRUE
B65: ZBGFS | C65: =AND((IMREAL(IMPRODUCT(_FSSOPB,IMCONJUGATE(_FSPOLB))))>(IMABS(_FSSOPB)*IMABS(_FSPOLB)*COS(RADIANS($L$58))),_50SUPV_I2_G,_50SUPV_I0,_50SUPV_I2I1_G,_50SUPV_I0I1) -> FALSE
B66: ZCGFS | C66: =AND((IMREAL(IMPRODUCT(_FSSOPC,IMCONJUGATE(_FSPOLC))))>(IMABS(_FSSOPC)*IMABS(_FSPOLC)*COS(RADIANS($L$58))),_50SUPV_I2_G,_50SUPV_I0,_50SUPV_I2I1_G,_50SUPV_I0I1) -> FALSE | E66: Final Loop Selection | F66: =IF(EXACT(_FTYPE,"SLG"),_ZAGFS,_ZBCnFS) -> TRUE
B67: ZBCFLT | C67: =(IMREAL(IMPRODUCT(_FSSOPBC,IMCONJUGATE(_FSPOLBC))))>(IMABS(_FSSOPBC)*IMABS(_FSPOLBC)*COS(RADIANS($L$62))) -> FALSE
B68: ZBCnFS | C68: =OR(AND(OR(_ZBCFLT,EXACT(_ZONE,"5")),NOT(OR(_ZBGFS,_ZCGFS)),_50SUPV_I2_P),NOT(_50SUPV_I2I1_P)) -> FALSE
B70: ####################OC SUPERVISION BITS#########################
B72: ZGn_50A | C72: =IMABS(_IA)>_ZGn_50Pset -> TRUE | E72: 50SUPV_I2_G | F72: =3*IMABS(_I2A)>(0.05*_INOMset) -> TRUE | G72: #I2 CHECK
B73: ZGn_50G | C73: =(3*IMABS(_I0))>_ZGn_50Gset -> TRUE | E73: 50SUPV_I2_P | F73: =3*IMABS(_I2A)>(3*0.05*_INOMset) -> TRUE | G73: #I2 CHECK
B74: ZPn_50BC | C74: =IMABS(_IBC)>_ZPn_50PPset -> FALSE | E74: 50SUPV_I0 | F74: =3*IMABS(_I0)>(0.05*_INOMset) -> TRUE | G74: #I0 CHECK
E75: 50SUPV_I2I1_G | F75: =IMABS(_I2A)>(0.1*IMABS(_I1A)) -> TRUE | G75: #I2/I1 RATIO CHECK
E76: 50SUPV_I2I1_P | F76: =IMABS(_I2A)>(0.15*IMABS(_I1A)) -> TRUE | G76: #I2/I1 RATIO CHECK
E77: 50SUPV_I0I1 | F77: =IMABS(_I0)>(0.1*IMABS(_I1A)) -> TRUE | G77: #I0/I1 RATIO CHECK
B80: ########################################################PLOTTING################################################################################################################PLOTTING################################################################################################################PLOTTING########################################################
D81: ##ZXn Point
E82: X | F82: Y
D83: Origin | E83: 0 | F83: 0
D84: ZGn | E84: =IF(EXACT(_FTYPE,"SLG"),IMREAL(_ZAG),IMREAL(_ZBC)) -> 0.733893711 | F84: =IF(EXACT(_FTYPE,"SLG"),IMAGINARY(_ZAG),IMAGINARY(_ZBC)) -> 2.19801843
W85: #################################ZONE 5####################################
B86: ########################################################################################ZONES 1-4######################################################################################## | Y86: b5bottom | Z86: =_ZX5REVset*SIN(RADIANS(_Z1ANGset))-TAN(RADIANS(_ZXnTANGset))*_ZX5REVset*COS(RADIANS(_Z1ANGset)) -> 3.975633074 | AA86: #*magnitude* of y-int Zone 5 bottom reactance
B87: K | C87: =0.15*SQRT(3)*_INOMset/_VNOMset -> 0.01129598353
B88: bSELF | C88: =_ZXnset*SIN(RADIANS(_Z1ANGset))-TAN(RADIANS(_ZXnTANGset))*_ZXnset*COS(RADIANS(_Z1ANGset)) -> 2.981724805 | D88: #y-int self-polarized reactance | L88: b2 | M88: =_ZXnset*SIN(RADIANS(_Z1ANGset))-TAN(IMARGUMENT(_IPOL2))*_ZXnset*COS(RADIANS(_Z1ANGset)) -> 2.978404644 | N88: #y-int 2nd Reactance Line | Y88: #Zone 5 Characteristic
Z89: X | AA89: Y
D90: #Base Forward Quad Coordinates. No DR/DX Applied. | L90: #Base Reactance With 2nd Reactance Line: Z1 (always) & Z2 when EPILOT=POTT | Y90: TOPLEFT | Z90: =-_ZXnRset -> -10 | AA90: =-_ZXnRset*TAN(RADIANS(_ZXnTANGset))+_bSELF -> 3.505802598
E91: X | F91: Y | M91: X | N91: Y | Y91: MIDLEFT | Z91: =IF(OR(AA90<0,AA92>0),Z90,-_ZXnRset) -> -10 | AA91: =IF(OR(AA90<0,AA92>0),AA90,0) -> 0
D92: TOPLEFT | E92: =(_bSELF-TAN(RADIANS(_Z1ANGset))*_ZXnRset)/(TAN(RADIANS(_Z1ANGset))-TAN(RADIANS(_ZXnTANGset))) -> -9.387492537 | F92: =(E92+_ZXnRset)*TAN(RADIANS(_Z1ANGset)) -> 3.473702442 | L92: BOTTOMLEFT | M92: =IF(OR(AND(_H=1,_ZONE=1,ISNUMBER(M93)),AND(_H=1,_ZONE=2,_EPILOTset<>"N",ISNUMBER(M93))),E93,NA()) -> -9.396926208 | N92: =IF(OR(AND(_H=1,_ZONE=1,ISNUMBER(M93)),AND(_H=1,_ZONE=2,_EPILOTset<>"N",ISNUMBER(M93))),F93,NA()) -> 3.420201433 | Y92: BOTTOMLEFT | Z92: =-(_b5bottom+TAN(RADIANS(_Z1ANGset))*_ZXnRset)/(TAN(RADIANS(_Z1ANGset))-TAN(RADIANS(_ZXnTANGset))) -> -10.60302978 | AA92: =-TAN(RADIANS(_Z1ANGset))*(-_ZXnRset+(_b5bottom+TAN(RADIANS(_Z1ANGset))*_ZXnRset)/(TAN(RADIANS(_Z1ANGset))-TAN(RADIANS(_ZXnTANGset)))) -> -3.419951829
D93: BOTTOMLEFT | E93: =-E96 -> -9.396926208 | F93: =-F96 -> 3.420201433 | L93: TOPLEFT | M93: =IF(OR(AND(_H=1,_ZONE=1),AND(_H=1,_ZONE=2,_EPILOTset<>"N")),(_b2-TAN(RADIANS(_Z1ANGset))*_ZXnRset)/(TAN(RADIANS(_Z1ANGset))-TAN(IMARGUMENT(_IPOL2))),NA()) -> -9.398537916 | N93: =IF(OR(AND(_H=1,_ZONE=1),AND(_H=1,_ZONE=2,_EPILOTset<>"N")),(M93+_ZXnRset)*TAN(RADIANS(_Z1ANGset)),NA()) -> 3.411060981 | Y93: BOTTOMRIGHT | Z93: =_ZXnRset -> 10 | AA93: =TAN(RADIANS(_ZXnTANGset))*_ZXnRset-_b5bottom -> -4.499710866
D94: MIDLEFT | E94: 0 | F94: 0 | L94: TOPRIGHT | M94: =IF(OR(AND(_H=1,_ZONE=1),AND(_H=1,_ZONE=2,_EPILOTset<>"N")),(_b2+TAN(RADIANS(_Z1ANGset))*_ZXnRset)/(TAN(RADIANS(_Z1ANGset))-TAN(IMARGUMENT(_IPOL2))),NA()) -> 10.44042698 | N94: =IF(OR(AND(_H=1,_ZONE=1),AND(_H=1,_ZONE=2,_EPILOTset<>"N")),(M94-_ZXnRset)*TAN(RADIANS(_Z1ANGset)),NA()) -> 2.497785537 | Y94: MIDRIGHT | Z94: =IF(OR(AA93>0,AA95<0),Z93,_ZXnRset) -> 10 | AA94: =IF(OR(AA93>0,AA95<0),AA93,0) -> 0
D95: MIDBOTTOM | E95: 0 | F95: 0 | L95: BOTTOMRIGHT | M95: =IF(OR(AND(_H=1,_ZONE=1,ISNUMBER(M93)),AND(_H=1,_ZONE=2,_EPILOTset<>"N",ISNUMBER(M93))),E96,NA()) -> 9.396926208 | N95: =IF(OR(AND(_H=1,_ZONE=1,ISNUMBER(M93)),AND(_H=1,_ZONE=2,_EPILOTset<>"N",ISNUMBER(M93))),F96,NA()) -> -3.420201433 | Y95: TOPRIGHT | Z95: =(_bSELF+TAN(RADIANS(_Z1ANGset))*_ZXnRset)/(TAN(RADIANS(_Z1ANGset))-TAN(RADIANS(_ZXnTANGset))) -> 10.4293816 | AA95: =TAN(RADIANS(_Z1ANGset))*(-_ZXnRset+(_bSELF+TAN(RADIANS(_Z1ANGset))*_ZXnRset)/(TAN(RADIANS(_Z1ANGset))-TAN(RADIANS(_ZXnTANGset)))) -> 2.435144076
D96: BOTTOMRIGHT | E96: =-_ZXnRset*TAN(RADIANS(_Z1ANGset))/(TAN(RADIANS(_DANG-90))-TAN(RADIANS(_Z1ANGset))) -> 9.396926208 | F96: =-TAN(RADIANS(_DANG-90))*_ZXnRset*TAN(RADIANS(_Z1ANGset))/(TAN(RADIANS(_DANG-90))-TAN(RADIANS(_Z1ANGset))) -> -3.420201433 | Y96: TOPLEFT | Z96: =-_ZXnRset -> -10 | AA96: =-_ZXnRset*TAN(RADIANS(_ZXnTANGset))+_bSELF -> 3.505802598
D97: TOPRIGHT | E97: =(_bSELF+TAN(RADIANS(_Z1ANGset))*_ZXnRset)/(TAN(RADIANS(_Z1ANGset))-TAN(RADIANS(_ZXnTANGset))) -> 10.4293816 | F97: =(E97-_ZXnRset)*TAN(RADIANS(_Z1ANGset)) -> 2.435144076
D98: TOPLEFT | E98: =E92 -> -9.387492537 | F98: =F92 -> 3.473702442 | G98: #Repeat 1st coordinate to close the loop | Y98: #Find and correct scenarios: top left corner is below the horizontal (follow line angle); similar for bottom right corner. If top right corner is below horizontal (follow veritcal line at resistive reach); similar for bottom left corner.
Z99: X | AA99: Y
D100: #Find and correct scenario where reactance line and bottom of quad overlap | Y100: TOPLEFT | Z100: =IF(AA90<0,(_bSELF-TAN(RADIANS(_Z1ANGset))*_ZXnRset)/(TAN(RADIANS(_Z1ANGset))-TAN(RADIANS(_ZXnTANGset))),Z90) -> -10 | AA100: =IF(AA90<0,(Z100+_ZXnRset)*TAN(RADIANS(_Z1ANGset)),AA90) -> 3.505802598
E101: X | F101: Y | Y101: MIDLEFT | Z101: =IF(OR(AA100<0,AA102>0),Z100,-_ZXnRset) -> -10 | AA101: =IF(OR(AA100<0,AA102>0),AA100,0) -> 0
D102: TOPLEFT | E102: =IF(F92<F93,-_bSELF/(TAN(RADIANS(_ZXnTANGset))+TAN(RADIANS(90-_DANG))),E92) -> -9.387492537 | F102: =IF(F92<F93,TAN(RADIANS(90-_DANG))*_bSELF/(TAN(RADIANS(_ZXnTANGset))+TAN(RADIANS(90-_DANG))),F92) -> 3.473702442 | Y102: BOTTOMLEFT | Z102: =IF(AA92>0,-_ZXnRset,Z92) -> -10.60302978 | AA102: =IF(AA92>0,TAN(RADIANS(_ZXnTANGset))*(-_ZXnRset)-_b5bottom,AA92) -> -3.419951829
D103: BOTTOMLEFT | E103: =IF(F92<F93,E102,E93) -> -9.396926208 | F103: =IF(F92<F93,F102,F93) -> 3.420201433 | Y103: BOTTOMRIGHT | Z103: =IF(AA93>0,(-_b5bottom+TAN(RADIANS(_Z1ANGset))*_ZXnRset)/(TAN(RADIANS(_Z1ANGset))-TAN(RADIANS(_ZXnTANGset))),Z93) -> 10 | AA103: =IF(AA93>0,(Z103-_ZXnRset)*TAN(RADIANS(_Z1ANGset)),AA93) -> -4.499710866
D104: MIDLEFT | E104: =E94 -> 0 | F104: =F94 -> 0 | Y104: MIDRIGHT | Z104: =IF(OR(AA103>0,AA105<0),Z103,_ZXnRset) -> 10 | AA104: =IF(OR(AA103>0,AA105<0),AA103,0) -> 0
D105: MIDBOTTOM | E105: =E95 -> 0 | F105: 0 | Y105: TOPRIGHT | Z105: =IF(AA95<0,_ZXnRset,Z95) -> 10.4293816 | AA105: =IF(AA95<0,TAN(RADIANS(_ZXnTANGset))*_ZXnRset+_bSELF,AA95) -> 2.435144076
D106: BOTTOMRIGHT | E106: =IF(F97<F96,-_bSELF/(TAN(RADIANS(_ZXnTANGset))+TAN(RADIANS(90-_DANG))),E96) -> 9.396926208 | F106: =IF(F97<F96,TAN(RADIANS(90-_DANG))*_bSELF/(TAN(RADIANS(_ZXnTANGset))+TAN(RADIANS(90-_DANG))),F96) -> -3.420201433 | Y106: TOPLEFT | Z106: =Z100 -> -10 | AA106: =AA100 -> 3.505802598
D107: TOPRIGHT | E107: =IF(F97<F96,E106,E97) -> 10.4293816 | F107: =IF(F97<F96,F106,F97) -> 2.435144076
D108: TOPLEFT | E108: =E102 -> -9.387492537 | F108: =F102 -> 3.473702442
D110: #Applying DR/DX for F | L110: #Apply DR/DX on 2nd reactance line
E111: X | F111: Y | M111: X | N111: Y
D112: TOPLEFT | E112: =IF(E92<-_DR,-_DR,E92) -> -0.5 | F112: =IF(E92<-_DR,TAN(RADIANS(_ZXnTANGset))*(-_DR)+_bSELF,F92) -> 3.007928695 | L112: BOTTOMLEFT | M112: =IF(M92<-_DR,-_DR,M92) -> -0.5 | N112: =IF(M92<-_DR,TAN(RADIANS(_DANG-90))*(-_DR),N92) -> 0.1819851171
D113: BOTTOMLEFT | E113: =IF(E93<-_DR,E114,E93) -> -0.5 | F113: =IF(E93<-_DR,F114,F93) -> 0.1819851171 | L113: TOPLEFT | M113: =IF(M93<-_DR,-_DR,M93) -> -0.5 | N113: =IF(M93<-_DR,TAN(IMARGUMENT(_IPOL2))*(-_DR)+_b2,N93) -> 3.001421859
D114: MIDLEFT | E114: =IF(E93<-_DR,-_DR,E94) -> -0.5 | F114: =IF(E93<-_DR,TAN(RADIANS(_DANG-90))*(-_DR),F94) -> 0.1819851171 | L114: TOPRIGHT | M114: =M94 -> 10.44042698 | N114: =N94 -> 2.497785537
D115: MIDBOTTOM | E115: =IF(F96<-_DX,-_DX/(TAN(RADIANS(_DANG-90))),E95) -> 2.747477419 | F115: =IF(F96<-_DX,-_DX,F95) -> -1 | L115: BOTTOMRIGHT | M115: =IF(N95<-_DX,_ZXnRset-_DX/TAN(RADIANS(_Z1ANGset)),M95) -> 9.823673019 | N115: =IF(N95<-_DX,-_DX,N95) -> -1
D116: BOTTOMRIGHT | E116: =IF(F96<-_DX,_ZXnRset-_DX/TAN(RADIANS(_Z1ANGset)),E96) -> 9.823673019 | F116: =IF(F96<-_DX,-_DX,F96) -> -1
D117: TOPRIGHT | E117: =E97 -> 10.4293816 | F117: =F97 -> 2.435144076
D118: TOPLEFT | E118: =E112 -> -0.5 | F118: =F112 -> 3.007928695
D120: #Find and correct scenario where reactance line is below DX line for forward zones
E121: X | F121: Y
D122: TOPLEFT | E122: =E112 -> -0.5 | F122: =F112 -> 3.007928695
D123: BOTTOMLEFT | E123: =E113 -> -0.5 | F123: 0.1819851171
D124: MIDLEFT | E124: =E114 -> -0.5 | F124: 0.1819851171
D125: MIDBOTTOM | E125: =E115 -> 2.747477419 | F125: -1
D126: BOTTOMRIGHT | E126: =IF(F117<F116,(-_DX-_bSELF)/TAN(RADIANS(_ZXnTANGset)),E116) -> 9.823673019 | F126: =IF(F117<F116,-_DX,F116) -> -1
D127: TOPRIGHT | E127: =IF(F117<F116,E126,E117) -> 10.4293816 | F127: =IF(F117<F116,F126,F117) -> 2.435144076
D128: TOPLEFT | E128: =E118 -> -0.5 | F128: 3.007928695
D130: #Reverse Quad
E131: X | F131: Y
D132: TOPLEFT | E132: =-E102 -> 9.387492537 | F132: -3.473702442
D133: BOTTOMLEFT | E133: 9.396926208 | F133: -3.420201433
D134: MIDLEFT | E134: 0 | F134: 0
D135: MIDBOTTOM | E135: 0 | F135: 0
D136: BOTTOMRIGHT | E136: -9.396926208 | F136: 3.420201433
D137: TOPRIGHT | E137: -10.4293816 | F137: -2.435144076
D138: TOPLEFT | E138: 9.387492537 | F138: -3.473702442
D140: #Final Plot Based on Direction
E141: X | F141: Y
D142: TOPLEFT | E142: =IF(_H=1,E122,E132) -> -0.5 | F142: 3.007928695
D143: BOTTOMLEFT | E143: -0.5 | F143: 0.1819851171
D144: MIDLEFT | E144: -0.5 | F144: 0.1819851171
D145: MIDBOTTOM | E145: 2.747477419 | F145: -1
D146: BOTTOMRIGHT | E146: 9.823673019 | F146: -1
D147: TOPRIGHT | E147: 10.4293816 | F147: 2.435144076
D148: TOPLEFT | E148: -0.5 | F148: 3.007928695
D150: |PlotMax| | E150: =MAX(ABS(F155:G161)) -> 10.4293816
B152: ###################################################Combine Zones###########################################################
D154: Zones 1-4 | E154: Zone 5 | F154: X | G154: Y
D155: TOPLEFT | E155: TOPLEFT | F155: =IF(_ZONE=5,Calcs!Z100,Calcs!E142) -> -0.5 | G155: =IF(_ZONE=5,Calcs!AA100,Calcs!F142) -> 3.007928695
D156: BOTTOMLEFT | E156: MIDLEFT | F156: =IF(_ZONE=5,Calcs!Z101,Calcs!E143) -> -0.5 | G156: =IF(_ZONE=5,Calcs!AA101,Calcs!F143) -> 0.1819851171
D157: MIDLEFT | E157: BOTTOMLEFT | F157: =IF(_ZONE=5,Calcs!Z102,Calcs!E144) -> -0.5 | G157: =IF(_ZONE=5,Calcs!AA102,Calcs!F144) -> 0.1819851171
D158: MIDBOTTOM | E158: BOTTOMRIGHT | F158: =IF(_ZONE=5,Calcs!Z103,Calcs!E145) -> 2.747477419 | G158: =IF(_ZONE=5,Calcs!AA103,Calcs!F145) -> -1
D159: BOTTOMRIGHT | E159: MIDRIGHT | F159: =IF(_ZONE=5,Calcs!Z104,Calcs!E146) -> 9.823673019 | G159: =IF(_ZONE=5,Calcs!AA104,Calcs!F146) -> -1
D160: TOPRIGHT | E160: TOPRIGHT | F160: =IF(_ZONE=5,Calcs!Z105,Calcs!E147) -> 10.4293816 | G160: =IF(_ZONE=5,Calcs!AA105,Calcs!F147) -> 2.435144076
D161: TOPLEFT | E161: TOPLEFT | F161: =IF(_ZONE=5,Calcs!Z106,Calcs!E148) -> -0.5 | G161: =IF(_ZONE=5,Calcs!AA106,Calcs!F148) -> 3.007928695
B165: ##Line Angle | F165: ##FS Line
B166: X | C166: Y | F166: X | G166: Y
B167: =100*COS(RADIANS(_Z1ANGset)) -> 17.36481777 | C167: =100*SIN(RADIANS(_Z1ANGset)) -> 98.4807753 | F167: =IF(AND(AND(EXACT(_FTYPE,"PH-PH"),NOT(EXACT(_ZONE,"5"))),_Z1ANGset>70),100,NA()) ->  | G167: =TAN(RADIANS(_Z1ANGset-90))*F167 -> 
B168: 0 | C168: 0 | F168: =IF(AND(AND(EXACT(_FTYPE,"PH-PH"),NOT(EXACT(_ZONE,"5"))),_Z1ANGset>70),0,NA()) ->  | G168: =TAN(RADIANS(_Z1ANGset-90))*F168 -> 
B169: =-B167 -> -17.36481777 | C169: =-C167 -> -98.4807753 | F169: =IF(AND(AND(EXACT(_FTYPE,"PH-PH"),NOT(EXACT(_ZONE,"5"))),_Z1ANGset>70),-100,NA()) ->  | G169: =TAN(RADIANS(_Z1ANGset-90))*F169 -> 
B174: ##Reactance Bend Trajectory
B176: AG | H176: BC | N176: 3PH
B178: ZBOTTAG | C178: =IMDIV(COMPLEX(0,-_VAM),IMPRODUCT(0.75*_INOMset/(2*5),IMSUM(1,_k0),COMPLEX(COS(RADIANS(-_ZXTANGCIRC)),SIN(RADIANS(-_ZXTANGCIRC))))) -> -0.78916867694107-30.8872697818406i | H178: ZBOTTBC | I178: =IMDIV(IF(EXACT(_PHROTset,"ABC"),_VBC,IMSUB(_VC,_VB)),COMPLEX((0.5*_INOMset/5)*COS(RADIANS(-_ZXTANGCIRC)),(0.5*_INOMset/5)*SIN(RADIANS(-_ZXTANGCIRC)))) -> -12.0372699358771-229.684792993552i | N178: ZBOTT3PH | O178: =COMPLEX(0,0) -> 0
B180: #Rectangular Coordinates | H180: #Rectangular Coordinates | N180: #Rectangular Coordinates
C181: X | D181: Y | I181: X | J181: Y | O181: X | P181: Y
B182: ZBOTTAG | C182: =IMREAL(_ZBOTTAG) -> -0.7891686769 | D182: =IMAGINARY(_ZBOTTAG) -> -30.88726978 | H182: ZBOTTBC | I182: =IMREAL(_ZBOTTBC) -> -12.03726994 | J182: =IMAGINARY(_ZBOTTBC) -> -229.684793 | N182: ZBOTT3PH | O182: =IMREAL(_ZBOTT3PH) -> 0 | P182: =IMAGINARY(_ZBOTT3PH) -> 0
B183: ZXn | C183: =IMREAL(_ZXn) -> 0.520944533 | D183: =IMAGINARY(_ZXn) -> 2.954423259 | H183: ZXn | I183: =IMREAL(_ZXn) -> 0.520944533 | J183: =IMAGINARY(_ZXn) -> 2.954423259 | N183: ZXn | O183: =IMREAL(_ZXn) -> 0.520944533 | P183: =IMAGINARY(_ZXn) -> 2.954423259
B184: ZMIDAG | C184: =(C183-C182)/2+C182 -> -0.134112072 | D184: =(D183-D182)/2+D182 -> -13.96642326 | H184: ZMIDBC | I184: =(I183-I182)/2+I182 -> -5.758162701 | J184: =(J183-J182)/2+J182 -> -113.3651849 | N184: ZMID3PH | O184: =(O183-O182)/2+O182 -> 0.2604722665 | P184: =(P183-P182)/2+P182 -> 1.47721163
B186: ZRADAG | C186: =SQRT((C183-C184)^2+(D183-D184)^2) -> 16.93352137 | H186: ZRADBC | I186: =SQRT((I183-I184)^2+(J183-J184)^2) -> 116.4889627 | N186: ZRAD3PH | O186: =SQRT((O183-O184)^2+(P183-P184)^2) -> 1.5
B189: #Circle Center
B190: h | C190: k
B191: =_xlfn.IFS(EXACT(_FTYPE,"SLG"),C184,EXACT(_FTYPE,"PH-PH"),I184,EXACT(_FTYPE,"3PH"),O184) -> -0.134112072 | C191: =_xlfn.IFS(EXACT(_FTYPE,"SLG"),D184,EXACT(_FTYPE,"PH-PH"),J184,EXACT(_FTYPE,"3PH"),P184) -> -13.96642326
B193: #Radius
B194: r
B195: =_xlfn.IFS(EXACT(_FTYPE,"SLG"),C186,EXACT(_FTYPE,"PH-PH"),I186,EXACT(_FTYPE,"3PH"),O186) -> 16.93352137
B197: #Circle
B198: Theta | C198: X | D198: Y
B199: 0 | C199: =IF(AND(_rc*COS(B199)+_hc>=-_DR,_rc*SIN(B199)+_kc>=-_DX,OR(AND(_H=1,_ZONE=1),AND(_H=1,_ZONE=2,_EPILOTset<>"N"))),_rc*COS(B199)+_hc,NA()) ->  | D199: =IF(AND(_rc*COS(B199)+_hc>=-_DR,_rc*SIN(B199)+_kc>=-_DX,OR(AND(_H=1,_ZONE=1),AND(_H=1,_ZONE=2,_EPILOTset<>"N"))),_rc*SIN(B199)+_kc,NA()) -> 
B200: =B199+2*PI()/500 -> 0.01256637061
B201: =B200+2*PI()/500 -> 0.02513274123
B202: 0.03769911184
B203: 0.05026548246
B204: 0.06283185307
B205: 0.07539822369
B206: 0.0879645943
B207: 0.1005309649
B208: 0.1130973355
B209: 0.1256637061
B210: 0.1382300768
B211: 0.1507964474
B212: 0.163362818
B213: 0.1759291886
B214: 0.1884955592
B215: 0.2010619298
B216: 0.2136283004
B217: 0.2261946711
B218: 0.2387610417
B219: 0.2513274123
B220: 0.2638937829
B221: 0.2764601535
B222: 0.2890265241
B223: 0.3015928947
B224: 0.3141592654
B225: 0.326725636
B226: 0.3392920066
B227: 0.3518583772
B228: 0.3644247478
B229: 0.3769911184
B230: 0.389557489
B231: 0.4021238597
B232: 0.4146902303
B233: 0.4272566009
B234: 0.4398229715
B235: 0.4523893421
B236: 0.4649557127
B237: 0.4775220833
B238: 0.490088454
B239: 0.5026548246
B240: 0.5152211952
... 458 more rows

Sheet Revisions (hidden)
B4: Version | D4: Notes
B5: 1.01 | D5: Initial Release
B6: 1.02 | D6: Modified 2nd reatance blinder for Zone 2 to use the TANG value from Zone 1
B7: 1.03 | D7: Modified Zone 5 to properly model for the reverse setting
B8: 1.04 | D8: Added 2nd reactance blinder circle characteristics. Removed "initialize" button.
B9: 1.05 | D9: Graph now auto scales when clicking on the tab. Added FS line for PH-PH faults. Modified Quad shapes when reactance blinder is below bottom of quad.
D10: Modified line equation to better reflect when Z1ANG~90. Added Info tab for macro security information.
D11: Modified Zone 5 when the resistive reach is large and the tilt angle causes both reactance blinders to be above or below the horizontal axis.
D12: Modified the graph reset limits for high resistive reach Zone 5 plots.
B13: 1.06 | D13: Added OC supervision and ratio checks to the FS logic for scenarios with low sequence currents.
B14: 1.07 | D14: Hid the IPOL vector on the graph. Only the curved characteristic is required. Fixed the test voltage angles for ph-ph faults.
D15: This ensures VBC will be at -90 degrees or +90 degrees (depending on phase rotation), and the second reactance blinder (green) is valid.
D16: Cosmetic changes.
B17: 1.08 | D17: Added rule so DR and DX >=0.5. Forced PH-PH voltage test magnitude to be equal.
B18: 1.09 | D18: Removed the FS line for Zone 5.
B19: 1.1 | D19: Modified wording on Graph sheet.
B20: 1.11 | D20: Cosmetic and wording changes.
